bitfinex/quotes_ETHUSD_20250508
["timestamp","ask_amount","ask_price","bid_price","bid_amount"]
[1746742244825,0.20176349,2173.3,2173.2,3.808]
[1746742245029,0.7619,2173.9,2173.2,3.808]
[1746742245030,4.60076687,2173.6,2173.2,3.808]
[1746742245261,0.20233149,2173.5,2173.2,3.808]
[1746742245695,4.6000276,2173.9,2173.2,3.808]
[1746742245875,0.20209719,2173.4,2173.2,3.808]
[1746742246054,4.60076523,2173.6,2173.2,4.26998]
[1746742246256,0.20243085,2173.5,2173.2,4.26998]
[1746742246457,0.20243085,2173.5,2173.2,3.808]
[1746742246658,4.60108585,2173.4,2173.2,3.808]
[1746742246888,0.20196223,2173.3,2173.2,3.808]
[1746742247089,0.20196223,2173.3,2173.0,3.809]
[1746742247290,4.6004643,2173.7,2173.2,4.60150929]
[1746742247494,0.20172788,2173.2,2173.0,8.4568456]
[1746742247677,4.60092763,2173.5,2173.0,10.21918649]
[1746742247877,0.20219655,2173.4,2173.2,4.60132677]
[1746742248082,4.60034234,2173.8,2173.3,4.60129756]
[1746742248456,4.60007711,2173.9,2173.4,4.60090305]
[1746742248457,4.60014255,2173.9,2173.4,4.60090305]
[1746742248691,5.42718238,2174.4,2173.9,4.59997484]
[1746742248896,5.4271834,2174.4,2173.6,3.0]
[1746742249207,4.59977636,2174.1,2173.7,0.75735]
[1746742249363,4.60024893,2173.8,2173.5,4.5735]
[1746742249758,4.59960443,2174.1,2173.5,3.809]
[1746742250102,4.60059022,2173.7,2173.5,3.809]
[1746742250255,3.55,2174.2,2173.5,3.809]
[1746742250459,4.60066249,2173.6,2173.5,3.809]
[1746742250877,4.60115679,2173.4,2173.1,4.6288]
[1746742251060,4.60115679,2173.4,2173.1,5.44087328]
[1746742251401,4.60150929,2173.2,2173.1,3.81]
[1746742251584,4.60137326,2173.3,2173.1,3.81]
[1746742251991,0.7941,2173.7,2173.1,3.81]
[1746742252285,4.59984309,2174.0,2173.3,0.805]
[1746742252485,4.60023961,2173.8,2173.4,0.04600525]
[1746742252681,3.8164,2174.1,2173.3,5.40620249]
[1746742252996,4.60015822,2173.9,2173.4,4.60105296]
[1746742253199,4.60015822,2173.9,2173.4,4.64705822]
[1746742253405,4.60003552,2173.9,2173.3,2.18678421]
[1746742253613,4.60035361,2173.8,2173.3,5.40619898]
[1746742253764,4.59990983,2174.0,2173.5,4.60074251]
[1746742253965,4.59940312,2174.2,2173.8,4.60008412]
[1746742254174,4.59875833,2174.5,2173.9,4.59995295]
[1746742254401,4.59905898,2174.4,2173.9,4.64594669]
[1746742254602,4.59905898,2174.4,2173.9,1.38255308]
[1746742254906,4.59950312,2174.2,2173.9,1.38255308]
[1746742255271,4.6001287,2173.9,2173.7,4.5795]
[1746742255477,4.6001287,2173.9,2173.8,2.03417213]
[1746742256196,4.60002718,2174.0,2173.8,2.03417213]
[1746742256400,4.59991602,2174.0,2173.8,2.03417213]
[1746742257204,4.6000276,2173.9,2173.8,2.03417213]
[1746742257591,4.77397959,2173.9,2173.8,2.03417213]
[1746742258189,4.60023921,2173.8,2173.7,2.03417213]
[1746742258565,4.60172104,2173.1,2173.0,3.811]
[1746742258967,4.6023343,2172.9,2172.5,0.8189]
[1746742259162,0.17207858,2173.1,2172.5,0.8189]
[1746742259367,4.60228853,2172.9,2172.5,4.15470721]
[1746742259596,4.60214459,2172.9,2172.5,4.15470721]
[1746742259801,0.1713757,2172.8,2172.4,20.365]
[1746742260003,4.60293314,2172.6,2172.4,3.811]
[1746742260173,4.60299194,2172.5,2172.4,3.811]
[1746742260502,0.17067262,2172.5,2172.4,3.811]
[1746742260918,0.16420807,2172.5,2172.4,3.811]
[1746742261104,4.60281848,2172.6,2172.4,3.811]
[1746742261287,4.76720001,2172.5,2172.4,3.811]
[1746742261488,4.60398529,2172.1,2171.8,4.6088]
[1746742261700,0.7654,2172.6,2171.9,0.04603741]
[1746742261905,7.60296922,2172.6,2171.9,4.88787184]
[1746742262082,4.60323123,2172.4,2172.0,0.94966718]
[1746742262281,4.60372514,2172.2,2172.0,0.94966718]
[1746742262501,3.0,2172.7,2171.8,4.6088]
[1746742262680,4.60312669,2172.5,2172.0,4.60405142]
[1746742262999,4.60276914,2172.7,2172.1,0.04603401]
[1746742263174,0.7654,2173.3,2172.2,0.7968]
[1746742263374,4.60208822,2173.0,2172.5,4.60291611]
[1746742263578,4.60208822,2173.0,2172.6,4.64878244]
[1746742263817,4.60180801,2173.1,2172.6,4.64878244]
[1746742264210,4.60196107,2173.0,2172.6,0.04602193]
[1746742264410,4.60183535,2173.1,2172.6,4.64879439]
[1746742264713,4.60183535,2173.1,2172.7,0.7968]
[1746742264714,4.60178571,2173.1,2172.7,0.7968]
[1746742264914,0.8137,2174.0,2173.0,0.7534]
[1746742265223,0.8137,2174.0,2173.2,4.60150929]
[1746742265518,4.59972272,2174.1,2173.6,4.60052174]
[1746742265818,4.5999421,2174.0,2173.5,4.60077337]
[1746742266020,4.59787922,2175.0,2173.6,0.04600097]
[1746742266021,3.793,2174.7,2173.6,0.04600097]
[1746742266194,4.59965331,2174.1,2173.7,3.793]
[1746742266380,4.59972731,2174.1,2173.7,3.793]
[1746742266581,4.59972731,2174.1,2173.7,8.39344285]
[1746742266777,4.60014293,2173.9,2173.7,3.793]
[1746742266976,4.60023921,2173.8,2173.7,3.793]
[1746742267417,4.60077044,2173.6,2173.3,0.7534]
[1746742267615,4.6000276,2173.9,2173.3,1.71421591]
[1746742267803,4.60012539,2173.9,2173.4,4.60093293]
[1746742268008,4.60067175,2173.6,2173.3,1.6682077]
[1746742268209,0.8137,2174.3,2173.4,4.601055]
[1746742268210,4.60016451,2173.9,2173.4,4.601055]
[1746742268503,0.8137,2174.6,2173.6,4.60066249]
[1746742268708,0.8137,2174.6,2173.8,0.7534]
[1746742268709,4.6000276,2173.9,2173.8,0.7534]
[1746742268913,4.60066249,2173.6,2173.5,0.7534]
[1746742269088,4.60087416,2173.5,2173.4,3.793]
[1746742269282,4.60087416,2173.5,2173.2,0.7534]
[1746742269484,3.8137,2174.0,2173.2,0.79940948]
[1746742269727,0.8137,2173.3,2172.1,12.92757213]
[1746742269933,0.8137,2173.3,2172.2,4.60350448]
[1746742269934,4.60259998,2172.7,2172.2,4.60350448]
[1746742270534,4.60030715,2173.8,2172.6,0.8072]
[1746742270697,4.6014,2173.7,2172.7,3.83901582]
[1746742270904,4.60090938,2173.5,2172.7,3.793]
[1746742271126,4.60163026,2173.2,2172.8,0.46002]
[1746742271299,4.60149256,2173.3,2172.9,2.03417213]
[1746742271503,4.6014,2173.7,2172.9,2.03417213]
[1746742271504,4.60159964,2173.2,2172.9,2.03417213]
[1746742271698,4.60183934,2173.1,2172.9,2.03417213]
[1746742271899,4.6018718,2173.1,2172.9,2.66289134]
[1746742272339,4.60147518,2173.3,2172.9,2.03417213]
[1746742272540,0.12861976,2173.0,2172.9,2.03417213]
[1746742272826,4.60163391,2173.2,2172.9,2.03417213]
[1746742272988,0.12861976,2173.0,2172.9,2.03417213]
[1746742273188,4.60193281,2173.0,2172.9,2.03417213]
[1746742273387,4.73055257,2173.0,2172.9,2.03417213]
[1746742274215,4.73055257,2173.0,2172.7,2.03417213]
[1746742274216,4.6023564,2172.8,2172.7,2.03417213]
[1746742274519,4.73070116,2173.0,2172.7,2.03417213]
[1746742274737,0.13026612,2172.8,2172.7,2.03417213]
[1746742275031,4.6023564,2172.8,2172.7,2.03417213]
[1746742275335,4.73262252,2172.8,2172.7,2.03417213]
[1746742276234,4.60278007,2172.6,2172.5,2.03417213]
[1746742276519,0.13026612,2172.8,2172.5,2.41347213]
[1746742276687,0.12979739,2172.6,2172.5,2.03417213]
[1746742277086,4.6020223,2173.0,2172.5,2.03417213]
[1746742277087,4.60200106,2173.0,2172.5,2.03417213]
[1746742277425,4.6026586,2172.7,2172.5,2.03417213]
[1746742277615,4.60237365,2172.8,2172.5,2.03417213]
[1746742277814,0.12979739,2172.6,2172.5,3.07721634]
[1746742278017,4.60220949,2172.9,2172.5,7.68020017]
[1746742278216,4.602053,2173.0,2172.5,7.68020017]
[1746742278399,0.13026612,2172.8,2172.5,3.07721634]
[1746742278739,4.60226086,2172.9,2172.5,3.07721634]
[1746742278920,0.13003176,2172.7,2172.6,1.14733225]
[1746742279086,0.13003176,2172.7,2172.6,1.90783225]
[1746742279292,4.5393,2173.5,2172.7,4.60246933]
[1746742279636,4.60065878,2173.7,2173.2,4.60136834]
[1746742279937,4.60067183,2173.6,2173.3,2.03417213]
[1746742280233,4.60108585,2173.4,2173.3,2.03417213]
[1746742281731,6.87038215,2173.4,2173.3,2.03417213]
[1746742281924,4.60256823,2172.7,2172.6,2.03417213]
[1746742282495,4.59612991,2172.7,2172.6,2.03417213]
[1746742283563,5.38900382,2172.4,2172.3,2.03417213]
[1746742283760,4.60468757,2171.7,2171.6,2.03417213]
[1746742283913,4.60468757,2171.7,2171.4,2.03417213]
[1746742283914,4.60511167,2171.5,2171.4,2.03417213]
[1746742284647,0.7858,2171.8,2171.4,2.03417213]
[1746742284941,4.60511167,2171.5,2171.4,2.03417213]
[1746742285128,3.0,2171.8,2171.4,2.03417213]
[1746742285332,3.0,2172.0,2171.4,2.03417213]
[1746742285530,4.60422151,2172.0,2171.5,0.66396688]
[1746742285851,4.60437514,2171.9,2171.5,0.66396688]
[1746742286008,4.60383873,2172.2,2171.6,6.68496878]
[1746742286214,8.3967622,2172.7,2171.8,0.7783]
[1746742286215,4.6035911,2172.3,2171.8,0.7783]
[1746742286548,4.60363018,2172.2,2171.8,1.05954721]
[1746742286730,4.60321578,2172.4,2171.7,6.63876107]
[1746742286731,4.60447555,2171.8,2171.7,2.03417213]
[1746742287133,4.60388262,2172.1,2171.5,2.03417213]
[1746742287334,4.60489961,2171.6,2171.5,2.03417213]
[1746742287736,4.71215632,2171.6,2171.5,2.03417213]
[1746742287935,0.10725671,2171.6,2171.5,2.03417213]
[1746742288139,4.60394049,2172.1,2171.6,5.37594667]
[1746742288455,0.10750828,2172.0,2171.7,2.03417213]
[1746742288653,4.60428172,2171.9,2171.7,2.03417213]
[1746742288838,4.60447555,2171.8,2171.7,2.03417213]
[1746742289048,0.10750828,2172.0,2171.8,4.60438483]
[1746742289340,4.60331042,2172.4,2171.9,1.4299557]
[1746742289526,4.60400512,2172.1,2171.9,1.4299557]
[1746742289729,4.60341573,2172.3,2171.4,2.03417213]
[1746742290041,3.0,2172.3,2171.5,0.04604443]
[1746742290245,4.60375202,2172.2,2171.7,4.60466826]
[1746742290415,4.60428197,2171.9,2171.5,4.60499365]
[1746742290628,4.60428197,2171.9,2171.6,3.0]
[1746742290832,9.20875738,2171.9,2171.7,0.76049937]
[1746742291032,4.6034207,2172.3,2171.4,3.0]
[1746742291294,4.6034207,2172.3,2171.3,3.795]
[1746742291586,4.60526964,2171.5,2171.3,3.795]
[1746742291738,4.60426354,2171.9,2171.3,3.795]
[1746742291938,4.60520704,2171.5,2171.3,3.795]
[1746742292140,4.60532375,2171.4,2171.3,3.795]
[1746742292652,7.60510538,2171.6,2170.8,3.795]
[1746742292964,4.60625681,2171.0,2170.8,3.795]
[1746742293131,4.60638444,2170.9,2170.8,3.795]
[1746742293474,4.60711714,2170.6,2170.4,3.08539932]
[1746742293673,4.60660001,2170.8,2170.4,3.08539932]
[1746742293879,4.60640904,2170.9,2170.5,2.86634686]
[1746742294173,4.60692132,2170.7,2170.4,3.08539932]
[1746742294331,4.60664457,2170.8,2170.4,3.08539932]
[1746742294332,4.60723335,2170.5,2170.4,3.08539932]
[1746742294531,8.98453335,2170.5,2170.4,3.08539932]
[1746742294769,8.43453335,2170.5,2170.4,3.08539932]
[1746742295971,8.43453335,2170.5,2169.8,3.98964807]
[1746742295972,0.8273,2170.5,2169.8,0.04607723]
[1746742296274,0.35163645,2170.7,2169.6,3.0]
[1746742296275,4.60749887,2170.4,2169.9,0.782]
[1746742296459,4.60685751,2170.7,2169.9,5.39050107]
[1746742296663,4.60764697,2170.4,2170.0,0.53905011]
[1746742296970,4.311,2170.9,2170.1,0.04607544]
[1746742296971,0.761,2170.9,2170.1,0.04607544]
[1746742297141,4.60703976,2170.6,2170.0,0.53905011]
[1746742297338,4.60659664,2170.8,2169.9,4.559]
[1746742297339,4.60778709,2170.3,2169.9,4.559]
[1746742297558,4.60782243,2170.3,2169.9,4.559]
[1746742297872,4.60829493,2170.0,2169.9,3.777]
[1746742298041,4.60813059,2170.1,2169.9,3.777]
[1746742298042,4.60818608,2170.1,2169.9,3.777]
[1746742298245,4.60818828,2170.1,2169.6,5.40213639]
[1746742298445,4.60842367,2170.0,2169.6,2.39735357]
[1746742298770,3.0,2170.5,2169.6,2.39735357]
[1746742298946,4.60800712,2170.2,2169.7,4.60887885]
[1746742299143,4.69535653,2170.1,2169.7,4.60887885]
[1746742299476,0.08724854,2170.1,2169.9,4.60838723]
[1746742299677,0.08724854,2170.1,2169.8,0.74670609]
[1746742299678,0.08724854,2170.1,2169.8,5.35524511]
[1746742299841,4.6084793,2170.0,2169.6,1.60435357]
[1746742300046,0.08701343,2170.0,2169.6,1.60435357]
[1746742300274,4.60702555,2170.6,2169.6,1.60435357]
[1746742300275,5.15698734,2170.7,2169.8,4.60852271]
[1746742300477,0.0867783,2169.9,2169.8,4.60853959]
[1746742300681,4.3376,2170.8,2169.9,4.6083987]
[1746742300682,4.60757709,2170.4,2169.9,4.6083987]
[1746742300850,4.60769723,2170.3,2169.9,5.61335406]
[1746742301057,4.69558102,2170.3,2169.9,1.00495536]
[1746742301246,4.69568421,2170.3,2169.9,1.00495536]
[1746742301450,4.60824558,2170.1,2169.6,1.60435357]
[1746742301648,4.60794642,2170.2,2169.6,4.60914454]
[1746742301906,0.08999945,2170.0,2169.7,4.60890215]
[1746742302059,0.08999945,2170.0,2169.5,7.60927168]
[1746742302060,4.60836361,2170.0,2169.5,3.0]
[1746742302257,4.6984318,2169.9,2169.5,3.0]
[1746742302580,4.60861425,2169.9,2169.5,3.0]
[1746742302781,0.08952945,2169.8,2169.4,4.6125]
[1746742302965,0.08952945,2169.8,2169.1,0.8325]
[1746742302966,4.60958344,2169.4,2169.1,0.8325]
[1746742303145,0.08840384,2169.3,2169.1,0.8325]
[1746742303345,4.60705369,2170.6,2169.1,0.8325]
[1746742303346,4.6088366,2169.8,2169.2,0.04609389]
[1746742303682,1.3376,2169.6,2168.8,3.78]
[1746742303883,1.3376,2169.6,2168.7,0.8325]
[1746742303884,4.6108447,2168.8,2168.4,5.40118825]
[1746742304088,4.61111261,2168.7,2168.4,2.01625876]
[1746742304406,4.61169525,2168.4,2168.3,3.08539932]
[1746742304560,4.69887828,2168.4,2168.3,3.08539932]
[1746742304744,6.06697828,2168.4,2168.3,3.08539932]
[1746742305151,0.08718303,2168.4,2168.3,3.08539932]
[1746742305381,0.08718303,2168.4,2168.1,4.61221763]
[1746742305559,0.8181,2169.2,2168.3,4.61190794]
[1746742305881,5.4274268,2169.6,2168.9,4.61063086]
[1746742306045,0.08872997,2169.1,2168.9,4.61045069]
[1746742306250,4.60937146,2169.5,2168.8,4.61069389]
[1746742306474,0.8181,2169.6,2169.1,4.6101942]
[1746742306659,3.774,2169.9,2169.0,4.61040357]
[1746742306660,4.60952452,2169.5,2169.0,4.61040357]
[1746742306845,0.8181,2169.9,2169.4,4.60947226]
[1746742307179,4.60882505,2169.8,2169.3,4.6097183]
[1746742307366,0.8181,2169.9,2169.4,4.65556173]
[1746742307570,22.02497276,2170.2,2169.4,0.04609146]
[1746742307760,4.60843083,2170.0,2169.4,4.60944133]
[1746742307958,0.8181,2170.2,2169.5,4.60935699]
[1746742308147,4.60819907,2170.1,2169.6,4.60894638]
[1746742308343,3.775,2170.4,2169.6,0.04608487]
[1746742308606,4.12787563,2170.6,2169.8,4.60858893]
[1746742308607,4.6001,2170.6,2169.8,4.60858893]
[1746742308752,4.60768311,2170.3,2169.8,4.60858893]
[1746742308947,3.0,2170.5,2169.6,4.60900459]
[1746742308948,4.60806785,2170.2,2169.6,4.60900459]
[1746742309149,4.60773549,2170.3,2169.8,4.60861594]
[1746742309391,4.60740065,2170.5,2170.0,4.60821941]
[1746742309551,8.3891319,2170.6,2169.9,5.47713986]
[1746742309752,0.8181,2170.9,2170.0,3.782]
[1746742309956,5.42460905,2170.9,2170.3,4.60765792]
[1746742310266,4.60694686,2170.7,2170.2,4.60786855]
[1746742310477,4.6066985,2170.8,2170.2,4.60786855]
[1746742310784,5.42465542,2170.9,2170.1,0.8424678]
[1746742310978,4.60780072,2170.3,2170.0,3.782]
[1746742311296,5.42465542,2170.9,2170.0,3.782]
[1746742311297,5.15659664,2170.8,2170.0,3.782]
[1746742311450,3.0,2170.6,2170.0,3.782]
[1746742311658,4.607524,2170.4,2170.0,3.782]
[1746742311875,4.60744563,2170.4,2170.0,3.782]
[1746742312076,1.2214679,2170.4,2169.6,1.27615079]
[1746742312259,0.55,2170.5,2169.6,1.27615079]
[1746742312471,4.60763596,2170.4,2169.7,4.65485913]
[1746742312677,4.60763596,2170.4,2169.4,17.14320413]
[1746742312678,0.55,2170.2,2169.4,17.14320413]
[1746742312989,4.60926123,2169.6,2169.3,4.5682]
[1746742313302,0.55,2170.2,2169.3,3.782]
[1746742313478,0.55,2170.2,2169.3,8.77449298]
[1746742313661,1.3119,2170.3,2169.3,0.38280961]
[1746742313662,0.7619,2170.3,2169.3,0.38280961]
[1746742313999,4.60840237,2170.0,2169.5,4.60935699]
[1746742314592,4.60832467,2170.0,2169.6,0.04608628]
[1746742314775,4.60858019,2169.9,2169.4,7.60955044]
[1746742315100,0.7619,2170.3,2169.0,4.5359]
[1746742315398,4.60808257,2170.1,2169.0,9.14628183]
[1746742315568,4.60942185,2169.5,2169.1,3.782]
[1746742315890,4.6092384,2169.6,2169.1,8.39220233]
[1746742316261,4.60930579,2169.6,2169.1,3.782]
[1746742316462,4.60952934,2169.5,2169.1,3.782]
[1746742316676,4.60930579,2169.6,2169.2,4.60997515]
[1746742316677,4.60924531,2169.6,2169.2,4.60997515]
[1746742316884,3.55,2170.2,2169.2,0.04609433]
[1746742317093,4.60841856,2170.0,2169.5,4.60922794]
[1746742317286,4.60884429,2169.8,2169.3,4.60969233]
[1746742317477,4.60865516,2169.9,2169.3,4.60969233]
[1746742317478,4.60860115,2169.9,2169.4,4.6095655]
[1746742317676,4.6084111,2170.0,2169.5,4.60931211]
[1746742317984,0.7619,2170.3,2169.6,0.8114]
[1746742318189,0.7619,2170.3,2169.8,4.60857997]
[1746742318190,4.60779593,2170.3,2169.8,4.60857997]
[1746742318387,4.60779593,2170.3,2169.3,3.0]
[1746742318388,0.55,2170.4,2169.3,0.8114]
[1746742318573,0.55,2170.2,2169.3,0.8114]
[1746742318774,4.60698184,2170.7,2169.4,0.04609004]
[1746742319096,4.60779292,2170.3,2169.8,4.60863236]
[1746742319295,4.60812536,2170.1,2169.8,3.782]
[1746742319665,4.60809098,2170.1,2169.8,3.782]
[1746742319994,4.60808813,2170.1,2169.8,3.782]
[1746742320411,4.60808813,2170.1,2169.3,5.42117207]
[1746742320412,4.60915542,2169.6,2169.3,4.5934]
[1746742320567,5.52976358,2170.1,2169.3,4.5934]
[1746742320761,4.60845401,2170.0,2169.5,9.21856925]
[1746742320965,4.60820293,2170.1,2169.7,4.60892126]
[1746742321288,8.15726479,2170.5,2169.6,0.04608607]
[1746742321487,8.15726479,2170.5,2169.5,4.60921396]
[1746742321488,1.27398648,2170.4,2169.5,4.60921396]
[1746742321798,4.6083839,2170.0,2169.6,0.04608433]
[1746742321964,4.60864671,2169.9,2169.4,7.60941738]
[1746742322166,4.60873117,2169.8,2169.5,3.782]
[1746742322414,4.60900118,2169.7,2169.5,3.782]
[1746742322604,4.60900118,2169.7,2169.3,0.8114]
[1746742322605,4.60945019,2169.5,2169.3,0.8114]
[1746742322788,4.61020699,2169.1,2169.0,0.7856]
[1746742322967,4.61020699,2169.1,2168.7,0.7856]
[1746742323162,4.6104451,2169.0,2168.7,0.7856]
[1746742323400,4.60985024,2169.3,2168.7,1.18091586]
[1746742323698,4.60990636,2169.3,2168.7,0.7856]
[1746742323901,0.55,2169.6,2168.7,5.39658299]
[1746742324106,4.60956946,2169.4,2168.8,2.03417213]
[1746742324305,4.61063211,2168.9,2168.8,2.03417213]
[1746742324464,4.61021983,2169.1,2168.6,5.80317213]
[1746742324674,4.61105731,2168.7,2168.6,2.03417213]
[1746742324919,4.61032629,2169.1,2168.6,6.64540586]
[1746742325096,3.768,2169.5,2168.7,0.04610499]
[1746742325410,4.61001397,2169.2,2168.8,9.64490702]
[1746742325582,0.8006,2169.6,2168.9,4.61057227]
[1746742325779,0.8006,2169.6,2169.1,4.61007808]
[1746742325780,4.60929655,2169.6,2169.1,4.61007808]
[1746742325994,0.8006,2170.0,2169.0,0.7856]
[1746742326208,4.6085506,2169.9,2169.4,4.60937086]
[1746742326775,0.8006,2170.3,2169.6,0.7856]
[1746742327006,5.40835442,2170.3,2169.7,7.23326454]
[1746742327216,4.60796076,2170.2,2169.8,2.03417213]
[1746742327532,4.60914454,2169.6,2169.5,2.03417213]
[1746742328034,0.8006,2170.0,2169.5,2.03417213]
[1746742328251,4.60744563,2170.4,2169.6,6.63485905]
[1746742328405,4.60865879,2169.9,2169.7,3.71165804]
[1746742328602,4.60838498,2170.0,2169.8,2.03417213]
[1746742328806,4.6085073,2169.9,2169.8,2.03417213]
[1746742329007,0.55,2170.4,2169.5,2.03417213]
[1746742329242,4.60861541,2169.9,2169.6,2.03417213]
[1746742329549,4.5887,2170.8,2170.0,4.60829141]
[1746742329749,4.6072527,2170.5,2170.1,4.60806568]
[1746742329914,4.60680886,2170.7,2169.9,9.16186575]
[1746742330103,4.60753866,2170.4,2169.9,9.16180468]
[1746742330407,4.60764099,2170.4,2169.9,9.16184232]
[1746742330622,4.60622094,2171.0,2170.0,5.52443401]
[1746742330957,4.60702615,2170.6,2170.1,4.60791616]
[1746742331242,3.0,2170.2,2168.9,12.17417213]
[1746742331448,0.7919,2170.4,2169.6,0.8059]
[1746742331631,3.0,2170.5,2169.6,0.8059]
[1746742331632,0.7919,2170.7,2169.6,3.8059]
[1746742331807,4.60783352,2170.3,2169.9,4.60849313]
[1746742332015,4.6073986,2170.5,2170.0,0.04607888]
[1746742332220,4.60659664,2170.8,2170.1,0.8059]
[1746742332443,4.60783549,2170.3,2170.1,0.8059]
[1746742332643,4.60787024,2170.2,2170.1,0.8059]
[1746742333162,4.6078226,2170.3,2169.9,0.04607842]
[1746742333517,4.60744563,2170.4,2169.8,0.8059]
[1746742333750,4.6085073,2169.9,2169.8,1.56339]
[1746742334059,4.6085073,2169.9,2169.8,0.8059]
[1746742334227,3.0,2170.5,2169.8,0.8059]
[1746742334431,4.60787217,2170.2,2169.8,0.8059]
[1746742334630,4.60767787,2170.3,2169.8,5.41461108]
[1746742334828,4.60723335,2170.5,2169.9,0.91836111]
[1746742335033,4.60819825,2170.1,2169.8,0.8059]
[1746742335249,4.60829788,2170.0,2169.8,0.8059]
[1746742335448,4.60927211,2169.6,2169.4,0.7614]
[1746742335636,4.6091181,2169.7,2169.5,2.03417213]
[1746742335822,8.15723335,2170.5,2169.6,4.60912814]
[1746742335823,0.55,2170.4,2169.6,4.60912814]
[1746742336025,4.60828626,2170.1,2169.7,2.03417213]
[1746742336230,4.6081866,2170.1,2169.7,2.03417213]
[1746742336442,5.3795265,2170.5,2169.7,2.03417213]
[1746742336637,4.60871969,2169.8,2169.7,2.03417213]
[1746742337444,4.60914454,2169.6,2169.5,2.03417213]
[1746742337644,4.60914454,2169.6,2169.1,2.03417213]
[1746742337645,4.60999446,2169.2,2169.1,2.03417213]
[1746742338158,4.61020699,2169.1,2169.0,3.769]
[1746742338320,4.61020699,2169.1,2169.0,5.80317213]
[1746742338517,4.6101136,2169.2,2169.0,5.80317213]
[1746742338872,0.7722,2169.8,2169.1,2.03417213]
[1746742339157,4.60958959,2169.4,2169.2,2.79557213]
[1746742339461,4.60924086,2169.6,2169.2,2.79557213]
[1746742339753,4.6089392,2169.7,2169.2,7.40555462]
[1746742339954,4.60885501,2169.8,2169.2,7.40555462]
[1746742340142,4.60864459,2169.9,2169.3,9.41032476]
[1746742340346,4.60881059,2169.8,2169.3,4.80064542]
[1746742340656,4.60877809,2169.8,2169.2,2.79557213]
[1746742340824,4.60903227,2169.7,2169.3,0.04608995]
[1746742341162,4.60917755,2169.6,2169.2,2.79557213]
[1746742341660,4.60904813,2169.7,2169.2,7.40554098]
[1746742341832,4.60852268,2169.9,2169.3,5.63806429]
[1746742342036,4.60737466,2170.5,2169.6,3.0]
[1746742342225,5.35813953,2170.9,2169.9,4.60840558]
[1746742342553,4.60774618,2170.3,2170.1,0.7582]
[1746742342857,4.60774618,2170.3,2169.8,2.79237213]
[1746742342858,4.6085073,2169.9,2169.8,2.79237213]
[1746742343074,4.6085073,2169.9,2169.8,2.03417213]
[1746742343358,4.60880973,2169.8,2169.4,2.83846256]
[1746742343551,4.60838967,2170.0,2169.5,2.03417213]
[1746742343721,4.60838967,2170.0,2169.6,2.08025946]
[1746742343924,4.60869354,2169.9,2169.6,2.03417213]
[1746742344154,4.60889819,2169.8,2169.6,2.03417213]
[1746742344358,4.60893211,2169.7,2169.6,2.03417213]
[1746742344659,4.6096579,2169.4,2169.2,3.769]
[1746742344859,4.60999446,2169.2,2169.1,0.8319]
[1746742345064,4.60999446,2169.2,2169.1,6.11]
[1746742345232,0.7609,2169.8,2169.1,6.11]
[1746742345427,4.60940733,2169.5,2169.2,6.11]
[1746742345626,4.60959577,2169.4,2169.2,6.11]
[1746742345963,4.60978195,2169.3,2169.2,6.11]
[1746742346130,4.60959577,2169.4,2169.2,6.11]
[1746742346131,4.60962856,2169.4,2169.2,6.11]
[1746742346326,4.60923461,2169.6,2169.2,6.11]
[1746742346526,0.7609,2169.8,2169.2,6.11]
[1746742346527,4.60937496,2169.5,2169.2,8.52311306]
[1746742346735,4.60907409,2169.7,2169.3,0.8136]
[1746742346940,4.60882961,2169.8,2169.3,0.85969361]
[1746742347160,4.60935699,2169.5,2169.4,6.11]
[1746742347578,4.61020699,2169.1,2169.0,9.19539932]
[1746742347758,4.61020699,2169.1,2169.0,3.08539932]
[1746742348353,4.61014634,2169.2,2169.0,3.08539932]
[1746742348558,4.61014634,2169.2,2169.0,3.39393925]
[1746742348764,4.60969321,2169.4,2169.0,3.39393925]
[1746742349089,4.60945476,2169.5,2169.2,0.7525]
[1746742349268,4.60957575,2169.4,2169.2,0.7525]
[1746742349588,4.60765792,2170.3,2169.4,4.6093952]
[1746742349751,4.60871379,2169.9,2169.5,6.0490823]
[1746742349955,4.60883227,2169.8,2169.5,6.0490823]
[1746742350298,4.60865704,2169.9,2169.7,0.7525]
[1746742350463,4.60871969,2169.8,2169.7,0.7525]
[1746742350656,4.60893211,2169.7,2169.6,6.002997]
[1746742350850,4.60935699,2169.5,2169.4,6.755497]
[1746742351088,4.60926678,2169.6,2169.4,6.755497]
[1746742351399,4.6092721,2169.6,2169.4,6.755497]
[1746742351593,4.60925069,2169.6,2169.4,6.755497]
[1746742351802,4.60935699,2169.5,2169.4,6.755497]
[1746742351984,4.60935699,2169.5,2169.4,6.002997]
[1746742352197,4.60978195,2169.3,2169.2,6.002997]
[1746742352377,4.61020699,2169.1,2169.0,6.002997]
[1746742352704,4.60940481,2169.5,2169.0,10.65944663]
[1746742352899,4.60917027,2169.6,2169.2,0.7525]
[1746742353113,4.60899503,2169.7,2169.2,0.7525]
[1746742353291,4.60856229,2169.9,2169.4,4.60953933]
[1746742353609,4.60856229,2169.9,2169.6,0.7525]
[1746742353910,4.60779437,2170.3,2169.8,4.60862895]
[1746742354378,4.60779437,2170.3,2169.9,3.76]
[1746742354580,4.60788303,2170.2,2169.9,10.5998599]
[1746742355407,5.37860909,2170.7,2169.9,10.5998599]
[1746742355575,5.37863774,2170.7,2169.9,10.5998599]
[1746742355770,4.60759795,2170.4,2170.0,0.04607581]
[1746742355977,4.60757324,2170.4,2170.1,0.7525]
[1746742356212,4.60768517,2170.3,2170.1,0.7525]
[1746742356513,4.60768517,2170.3,2169.9,14.37139329]
[1746742356514,4.60723335,2170.5,2169.9,9.762997]
[1746742356711,4.6079897,2170.2,2169.9,9.762997]
[1746742356871,0.7783,2171.0,2170.0,4.65429932]
[1746742357075,0.7783,2171.0,2170.1,5.36488108]
[1746742357076,5.3844788,2171.0,2170.1,5.36488108]
[1746742357312,0.7783,2171.0,2170.2,4.60781702]
[1746742357528,0.7783,2171.3,2170.4,0.7568]
[1746742357679,4.60565188,2171.3,2170.6,0.7568]
[1746742357874,4.60660669,2170.8,2170.6,0.7568]
[1746742358120,4.60664639,2170.8,2170.2,0.7568]
[1746742358358,3.7783,2171.0,2170.0,36.501997]
[1746742358527,4.60754043,2170.4,2170.0,20.359]
[1746742358819,4.60752727,2170.4,2170.1,0.04607593]
[1746742359018,4.60708734,2170.6,2170.1,3.25995792]
[1746742359219,4.60775846,2170.3,2170.0,20.359]
[1746742359581,0.55,2170.8,2170.1,6.002997]
[1746742359787,4.60799888,2170.2,2170.1,6.002997]